[Event "Israel Youth-ch U14 2025"]
[Site "Rishon Le Zion"]
[Date "2025.04.09"]
[Round "7.1"]
[White "Sapir, Omri"]
[Black "Zakin, Ilay"]
[Result "0-1"]
[Annotator "ChessBase"]
[ECO "B22"]
[WhiteElo "1746"]
[BlackElo "2254"]
[PlyCount "132"]
[EventDate "2025.04.03"]
[EventType "swiss"]
[EventCountry "ISR"]
[SourceTitle "playchess.com"]
[Source "ChessBase"]
[SourceQuality "1"]
[TimeControl "5400+30"]

1. e4 {[%emt 0:00:22]} c5 {[%emt 0:00:20]} 2. c3 {[%emt 0:00:18]} Nf6 {[%emt 0:00:15]} 3. e5 {[%emt 0:00:04]} Nd5 {[%emt 0:00:08]} 4. d4 {[%emt 0:00:04]} Nc6 {[%emt 0:00:07]} 5. Nf3 {[%emt 0:00:04]} cxd4 {[%emt 0:00:06]} 6. cxd4 {[%emt 0:00:14]} d6 {[%emt 0:00:04]} 7. Bc4 {[%emt 0:00:05]} dxe5 {[%emt 0:00:05]} 8. Bxd5 {[%emt 0:00:03]} Qxd5 {[%emt 0:00:06]} 9. Nc3 {[%emt 0:00:03]} Qd6 {[%emt 0:00:06]} 10. d5 {[%emt 0:00:03]} Nd4 {[%emt 0:00:05]} 11. Nxd4 {[%emt 0:00:04]} exd4 {[%emt 0:00:04]} 12. Qxd4 {[%emt 0:00:06]} e5 {[%emt 0:00:02]} 13. Qd3 {[%emt 0:00:17]} Bd7 {[%emt 0:00:08]} 14. O-O {[%emt 0:00:19]} Qg6 {[%emt 0:00:16]} 15. Qe2 {[%emt 0:10:58]} Bd6 {[%emt 0:15:39]} 16. Rd1 {[%emt 0:04:44]} O-O {[%emt 0:02:10]} 17. Ne4 {[%emt 0:08:04]} Bb8 {[%emt 0:03:31]} 18. b3 {[%emt 0:02:52]} f5 {[%emt 0:08:34]} 19. Nc5 {[%emt 0:00:45]} Bc8 {[%emt 0:00:19]} 20. Bb2 {[%emt 0:26:47]} b6 {[%emt 0:14:57]} 21. Nd3 {[%emt 0:03:11]} e4 {[%emt 0:00:34]} 22. Ne5 {[%emt 0:00:43]} Qe8 {[%emt 0:00:14]} 23. d6 {[%emt 0:00:44]} Be6 {[%emt 0:03:06]} 24. Qa6 {[%emt 0:15:43]} Qd8 {[%emt 0:08:47]} 25. Ba3 {[%emt 0:07:09]} Qf6 {[%emt 0:04:18]} 26. Qb7 {[%emt 0:06:46]} Qxe5 {[%emt 0:00:57]} 27. Qxa8 {[%emt 0:00:14]} f4 {[%emt 0:00:53]} 28. d7 {[%emt 0:00:54]} f3 {[%emt 0:03:07]} 29. g3 {[%emt 0:06:00]} Rd8 {[%emt 0:00:47]} 30. Bd6 {[%emt 0:00:32]} Qf5 {[%emt 0:00:24]} 31. Kh1 {[%emt 0:02:24]} Bc7 {[%emt 0:02:01]} 32. Qc6 {[%emt 0:00:34]} Qh3 {[%emt 0:00:47]} 33. Rg1 {[%emt 0:00:02]} Bxd6 {[%emt 0:00:07]} 34. Qxd6 {[%emt 0:00:15]} Rxd7 {[%emt 0:00:30]} 35. Qb8+ {[%emt 0:00:15]} Kf7 {[%emt 0:00:01]} 36. Qf4+ {[%emt 0:00:08]} Qf5 {[%emt 0:00:05]} 37. Qxf5+ Bxf5 {[%emt 0:00:01]} 38. Rgd1 {[%emt 0:01:21]} Re7 {[%emt 0:00:05]} 39. Re1 {[%emt 0:00:09]} g5 {[%emt 0:01:11]} 40. Rac1 {[%emt 0:01:13]} Kg6 {[%emt 0:00:42]} 41. Rc4 {[%emt 0:04:59]} Rd7 {[%emt 0:07:25]} 42. g4 {[%emt 0:01:10]} Bxg4 {[%emt 0:00:01]} 43. Rcxe4 {[%emt 0:00:07]} Bf5 {[%emt 0:02:55]} 44. Re7 {[%emt 0:01:07]} Rd2 {[%emt 0:00:19]} 45. Kg1 {[%emt 0:00:30]} Rxa2 {[%emt 0:00:08]} 46. Rc7 {[%emt 0:00:32]} g4 {[%emt 0:01:19]} 47. Rc6+ {[%emt 0:00:29]} Kg5 {[%emt 0:00:06]} 48. Rc4 {[%emt 0:00:30]} Rb2 {[%emt 0:00:39]} 49. Rc3 {[%emt 0:00:29]} Kh4 {[%emt 0:02:48]} 50. Rec1 {[%emt 0:00:28]} a5 {[%emt 0:02:00]} 51. Re3 {[%emt 0:00:32]} Bg6 {[%emt 0:04:56]} 52. Rec3 {[%emt 0:00:33]} Bf5 {[%emt 0:03:04]} 53. Re3 {[%emt 0:00:29]} Bc2 {[%emt 0:05:14]} 54. Rc3 {[%emt 0:00:30]} Bxb3 {[%emt 0:02:37]} 55. Rc6 {[%emt 0:00:21]} a4 {[%emt 0:01:10]} 56. Rh6+ {[%emt 0:00:35]} Kg5 {[%emt 0:00:04]} 57. Rxb6 {[%emt 0:00:03]} Kf5 {[%emt 0:05:06]} 58. Rb5+ {[%emt 0:00:26]} Ke4 {[%emt 0:01:36]} 59. Ra1 {[%emt 0:01:05]} a3 {[%emt 0:00:27]} 60. h3 {[%emt 0:00:10]} g3 {[%emt 0:01:01]} 61. Rb4+ {[%emt 0:00:50]} Kd5 {[%emt 0:01:48]} 62. fxg3 {[%emt 0:00:05]} Kc5 {[%emt 0:00:32]} 63. Rb8 {[%emt 0:00:32]} f2+ {[%emt 0:00:07]} 64. Kg2 {[%emt 0:00:37]} Bd5+ {[%emt 0:00:01]} 65. Kf1 {[%emt 0:00:08]} Bc4+ {[%emt 0:00:04]} 66. Kg2 {[%emt 0:00:10]} f1=Q# {[%emt 0:00:07]} 0-1

[Event "Israel Youth-ch U14 2025"]
[Site "Rishon Le Zion"]
[Date "2025.04.09"]
[Round "7.2"]
[White "Shilon Rahav, Eliran"]
[Black "Vardi, Daniel"]
[Result "1-0"]
[Annotator "ChessBase"]
[ECO "B40"]
[WhiteElo "2189"]
[BlackElo "2049"]
[PlyCount "63"]
[EventDate "2025.04.03"]
[EventType "swiss"]
[EventCountry "ISR"]
[SourceTitle "playchess.com"]
[Source "ChessBase"]
[SourceQuality "1"]
[TimeControl "5400+30"]

1. e4 {[%emt 1:31:00]} c5 {[%emt 0:00:04]} 2. Nf3 {[%emt 0:00:00]} e6 {[%emt 0:00:04]} 3. g3 {[%emt 0:00:00]} d5 {[%emt 0:00:04]} 4. exd5 {[%emt 0:00:00]} exd5 {[%emt 0:00:02]} 5. d4 {[%emt 0:00:00]} Nc6 {[%emt 0:00:04]} 6. Bg2 {[%emt 0:00:00]} Bg4 {[%emt 0:00:38]} 7. O-O {[%emt 0:00:00]} cxd4 {[%emt 0:00:08]} 8. Nbd2 {[%emt 0:00:00]} Nf6 {[%emt 0:00:08]} 9. Nb3 {[%emt 0:00:00]} Be7 {[%emt 0:00:47]} 10. Nbxd4 {[%emt 0:00:00]} O-O {[%emt 0:00:27]} 11. Be3 {[%emt 0:00:00]} Ne4 {[%emt 0:01:10]} 12. h3 {[%emt 0:00:00]} Bh5 {[%emt 0:06:00]} 13. g4 {[%emt 0:00:00]} Bg6 {[%emt 0:00:10]} 14. c3 {[%emt 0:00:00]} Bf6 {[%emt 0:09:47]} 15. Ne2 {[%emt 0:00:00]} Qd7 {[%emt 0:09:33]} 16. Nf4 {[%emt 0:00:00]} Rad8 {[%emt 0:02:56]} 17. Nxg6 {[%emt 0:00:00]} hxg6 {[%emt 0:00:34]} 18. Qc2 {[%emt 0:00:00]} Rfe8 {[%emt 0:08:41]} 19. Rad1 {[%emt 0:00:00]} Qc7 {[%emt 0:08:56]} 20. Rfe1 {[%emt 0:00:00]} a6 {[%emt 0:13:48]} 21. Qb3 {[%emt 0:00:00]} Qd6 {[%emt 0:13:18]} 22. g5 {[%emt 0:00:00]} Be7 {[%emt 0:03:48]} 23. Bb6 {[%emt 0:00:00]} Nc5 {[%emt 0:03:36]} 24. Qa3 {[%emt 0:00:00]} Rc8 {[%emt 0:00:33]} 25. Bxc5 {[%emt 0:00:00]} Qxc5 {[%emt 0:00:06]} 26. Qxc5 {[%emt 0:00:00]} Bxc5 {[%emt 0:00:02]} 27. Rxd5 {[%emt 0:00:00]} Bb6 {[%emt 0:01:16]} 28. Rd7 {[%emt 0:00:00]} Rxe1+ {[%emt 0:01:14]} 29. Nxe1 {[%emt 0:00:00]} Re8 {[%emt 0:00:07]} 30. Kf1 {[%emt 0:00:00]} Ne5 {[%emt 0:01:51]} 31. Rxb7 {[%emt 0:00:00]} Nc4 {[%emt 0:00:33]} 32. Bd5 {[%emt 0:00:00]} 1-0

[Event "Israel Youth-ch U14 2025"]
[Site "Rishon Le Zion"]
[Date "2025.04.09"]
[Round "7.3"]
[White "Weber, Yonatan"]
[Black "Ashkenazy, Nir"]
[Result "1-0"]
[Annotator "ChessBase"]
[ECO "A13"]
[WhiteElo "2159"]
[BlackElo "1830"]
[PlyCount "65"]
[EventDate "2025.04.03"]
[EventType "swiss"]
[EventCountry "ISR"]
[SourceTitle "playchess.com"]
[Source "ChessBase"]
[SourceQuality "1"]
[TimeControl "5400+30"]

1. c4 {[%emt 0:00:02]} e6 {[%emt 0:00:04]} 2. g3 {[%emt 0:00:07]} d5 {[%emt 0:00:01]} 3. Bg2 {[%emt 0:00:12]} a6 {[%emt 0:00:04]} 4. Nf3 {[%emt 0:01:53]} dxc4 {[%emt 0:00:05]} 5. a4 {[%emt 0:01:23]} Nf6 {[%emt 0:04:27]} 6. Qc2 {[%emt 0:00:46]} Nc6 {[%emt 0:00:40]} 7. Qxc4 {[%emt 0:02:09]} Qd5 {[%emt 0:00:49]} 8. Na3 {[%emt 0:24:08]} Na5 {[%emt 0:07:53]} 9. Qxc7 {[%emt 0:02:05]} Bd6 {[%emt 0:01:07]} 10. Qc3 {[%emt 0:04:03]} Nb3 {[%emt 0:01:18]} 11. Rb1 {[%emt 0:14:20]} Nc5 {[%emt 0:08:09]} 12. b3 {[%emt 0:01:22]} Nce4 {[%emt 0:07:30]} 13. Qc4 {[%emt 0:01:36]} Qxc4 {[%emt 0:12:29]} 14. Nxc4 {[%emt 0:00:34]} Bc5 {[%emt 0:00:12]} 15. O-O {[%emt 0:05:00]} b5 {[%emt 0:01:51]} 16. Nce5 {[%emt 0:05:24]} Nd5 {[%emt 0:04:26]} 17. Ne1 {[%emt 0:07:20]} Nd6 {[%emt 0:02:01]} 18. N1d3 {[%emt 0:00:19]} Bb6 {[%emt 0:04:31]} 19. Ba3 {[%emt 0:00:29]} Nb7 {[%emt 0:01:50]} 20. Nb4 {[%emt 0:06:55]} f6 {[%emt 0:05:34]} 21. Nxd5 {[%emt 0:03:30]} exd5 {[%emt 0:00:32]} 22. Nd3 {[%emt 0:00:08]} d4 {[%emt 0:01:41]} 23. Rfc1 {[%emt 0:01:48]} Rb8 {[%emt 0:04:39]} 24. Rxc8+ {[%emt 0:03:00]} Rxc8 {[%emt 0:00:01]} 25. Bxb7 {[%emt 0:00:07]} Rc2 {[%emt 0:00:16]} 26. Bxa6 {[%emt 0:00:24]} bxa4 {[%emt 0:01:39]} 27. bxa4 {[%emt 0:01:21]} Bd8 {[%emt 0:00:22]} 28. Rb7 {[%emt 0:02:32]} Bc7 {[%emt 0:01:35]} 29. Nc5 {[%emt 0:00:28]} Kd8 {[%emt 0:01:52]} 30. Bd3 {[%emt 0:01:13]} Ra2 {[%emt 0:00:31]} 31. Ne6+ {[%emt 0:00:20]} Kd7 {[%emt 0:00:09]} 32. Rxc7+ {[%emt 0:00:12]} Kxe6 {[%emt 0:00:05]} 33. Bc4+ {[%emt 0:00:10]} 1-0

[Event "Israel Youth-ch U14 2025"]
[Site "Rishon Le Zion"]
[Date "2025.04.09"]
[Round "7.4"]
[White "Kendel, Eitan"]
[Black "Hanein, Avri"]
[Result "0-1"]
[Annotator "NA"]
[ECO "B50"]
[WhiteElo "1850"]
[BlackElo "2027"]
[PlyCount "76"]
[EventDate "2025.04.03"]
[EventType "swiss"]
[EventCountry "ISR"]
[SourceTitle "playchess.com"]
[Source "ChessBase"]
[SourceQuality "1"]
[TimeControl "5400+30"]

1. e4 {[%emt 0:00:02]} c5 {[%emt 0:00:04]} 2. Nf3 {[%emt 0:00:04]} d6 {[%emt 0:00:03]} 3. b3 {[%emt 0:00:07]} Nf6 {[%emt 0:00:16]} 4. Bb5+ {[%emt 0:00:15]} Nbd7 {[%emt 0:00:09]} 5. d3 {[%emt 0:00:11]} a6 {[%emt 0:00:33]} 6. Bxd7+ {[%emt 0:00:26]} Bxd7 {[%emt 0:00:06]} 7. Bb2 {[%emt 0:00:08]} e6 {[%emt 0:00:08]} 8. O-O {[%emt 0:00:08]} Be7 {[%emt 0:00:05]} 9. Re1 {[%emt 0:00:49]} e5 {[%emt 0:01:59]} 10. a4 {[%emt 0:01:49]} b5 {[%emt 0:00:30]} 11. axb5 {[%emt 0:00:19]} axb5 {[%emt 0:00:05]} 12. Nbd2 {[%emt 0:00:25]} O-O {[%emt 0:00:31]} 13. Qe2 {[%emt 0:01:55]} Nh5 {[%emt 0:02:50]} 14. Qf1 {[%emt 0:08:38]} f5 {[%emt 0:03:49]} 15. exf5 {[%emt 0:12:02]} Bxf5 {[%emt 0:00:22]} 16. Ne4 {[%emt 0:01:22]} Nf4 {[%emt 0:02:02]} 17. Ng3 {[%emt 0:02:51]} Bg6 {[%emt 0:05:34]} 18. Nd2 {[%emt 0:09:59]} h5 {[%emt 0:03:23]} 19. Ne2 {[%emt 0:02:49]} Ne6 {[%emt 0:02:16]} 20. Nc3 {[%emt 0:17:12]} Nd4 {[%emt 0:01:16]} 21. Rec1 {[%emt 0:00:35]} Bh4 {[%emt 0:02:20]} 22. Rxa8 {[%emt 0:06:17]} Qxa8 {[%emt 0:00:15]} 23. f3 {[%emt 0:00:23]} Bg5 {[%emt 0:09:22]} 24. Qf2 {[%emt 0:10:30]} Bh6 {[%emt 0:09:47]} 25. Ra1 {[%emt 0:04:32]} Qc6 {[%emt 0:01:07]} 26. Nde4 {[%emt 0:02:31]} d5 {[%emt 0:00:22]} 27. Ng3 {[%emt 0:00:18]} h4 {[%emt 0:00:51]} 28. Nf1 {[%emt 0:02:27]} h3 {[%emt 0:54:25]} 29. Nxd5 {[%emt 0:01:35]} Qxd5 {[%emt 0:00:00]} 30. Bxd4 {[%emt 0:00:01]} exd4 {[%emt 0:00:00]} 31. Re1 {[%emt 0:01:05]} hxg2 {[%emt 0:00:00]} 32. Qxg2 {[%emt 0:00:16]} Qxf3 {[%emt 0:00:00]} 33. Qxf3 {[%emt 0:00:09]} Rxf3 {[%emt 0:00:00]} 34. Re6 {[%emt 0:00:28]} Kh7 {[%emt 0:00:00]} 35. Rb6 {[%emt 0:00:13]} c4 {[%emt 0:00:00]} 36. Kg2 {[%emt 0:00:38]} Rf6 {[%emt 0:00:00]} 37. Rxb5 {[%emt 0:00:33]} cxd3 {[%emt 0:00:00]} 38. Rc5 {[%emt 0:01:29]} dxc2 {[%emt 0:00:00]} 0-1